bitfinex/quotes_ETHUSD_20250813
["timestamp","ask_amount","ask_price","bid_price","bid_amount"]
[1755062272865,0.002,4651.9,4651.3,3.376]
[1755062273065,0.03655989,4651.7,4651.3,3.376]
[1755062273247,0.03655989,4651.7,4651.6,0.1072]
[1755062274257,0.03655989,4651.0,4650.9,5.153]
[1755062274461,0.47675989,4651.0,4650.9,8.539]
[1755062275369,0.93485989,4651.0,4650.9,5.153]
[1755062275566,0.93485989,4651.0,4650.9,8.538]
[1755062275743,0.03655989,4651.0,4650.9,8.538]
[1755062275949,0.47675989,4651.0,4650.9,8.538]
[1755062276166,0.93485989,4651.0,4650.9,8.538]
[1755062280581,0.03655989,4650.4,4650.3,0.001]
[1755062280744,0.03655989,4650.4,4650.3,8.538]
[1755062280949,0.96255989,4650.4,4650.3,8.538]
[1755062281749,0.03655989,4650.4,4650.3,8.538]
[1755062281957,0.002,4651.7,4650.3,8.538]
[1755062281958,0.03655989,4650.7,4650.3,5.154]
[1755062282162,0.03655989,4650.7,4650.4,3.383]
[1755062282477,0.03655989,4651.1,4650.4,3.383]
[1755062282846,0.03655989,4651.4,4650.4,3.383]
[1755062283176,0.03655989,4651.1,4650.4,3.383]
[1755062283382,0.03655989,4651.5,4650.4,3.383]
[1755062283786,0.002,4651.7,4650.4,3.383]
[1755062283787,0.03655989,4651.1,4650.4,3.383]
[1755062284147,0.03655989,4651.1,4650.9,0.1072]
[1755062284352,0.03655989,4651.1,4651.0,3.382]
[1755062287464,0.47785989,4651.1,4651.0,3.382]
[1755062289194,0.03655989,4651.1,4651.0,3.382]
[1755062289793,0.14375989,4651.5,4651.0,3.382]
[1755062289981,0.03655989,4651.5,4651.0,3.4892]
[1755062290190,0.002,4651.7,4651.4,0.1072]
[1755062290496,0.002,4651.7,4651.5,3.374]
[1755062293213,0.002,4652.9,4651.6,0.55]
[1755062293413,0.002,4652.9,4652.8,0.1072]
[1755062293579,0.002,4652.9,4652.8,8.6342]
[1755062297025,0.002,4652.9,4652.8,5.2602]
[1755062297328,0.928,4652.9,4652.8,8.522]
[1755062303939,0.928,4652.9,4652.8,8.532]
[1755062307805,1.0352,4652.9,4652.8,8.532]
[1755062313726,0.1092,4652.9,4652.8,8.532]
[1755062314035,0.1092,4652.9,4652.8,5.163]
[1755062314223,1.61865989,4652.9,4652.8,5.163]
[1755062314428,1.78072588,4652.9,4652.8,8.524]
[1755062314924,0.03655989,4651.6,4650.4,0.01]
[1755062315106,0.03655989,4651.6,4651.1,0.1072]
[1755062315435,0.03655989,4651.6,4651.2,3.36]
[1755062315939,0.03655989,4652.2,4651.5,0.1072]
[1755062316122,0.03655989,4652.2,4651.6,3.36]
[1755062316440,0.03655989,4652.2,4651.8,0.1072]
[1755062316620,0.03655989,4652.2,4651.9,3.359]
[1755062317010,1.4729,4652.1,4652.0,5.152]
[1755062317350,1.4729,4652.1,4652.0,8.513]
[1755062317512,1.62384599,4652.1,4652.0,8.513]
[1755062319331,1.62384599,4652.1,4652.0,5.152]
[1755062319551,1.62384599,4652.1,4652.0,8.51]
[1755062320746,1.4729,4652.1,4652.0,8.51]
[1755062321447,0.03655989,4651.6,4651.3,0.001]
[1755062321645,0.03655989,4651.6,4651.4,8.509]
[1755062321820,0.03655989,4651.6,4651.4,5.152]
[1755062322023,0.03655989,4651.6,4651.5,3.356]
[1755062322748,0.03655989,4651.6,4651.4,5.152]
[1755062323124,0.03655989,4651.6,4651.5,3.354]
[1755062323848,0.03655989,4651.6,4651.3,0.001]
[1755062324044,0.03655989,4651.6,4651.4,8.507]
[1755062324450,0.03655989,4651.6,4651.5,5.153]
[1755062324652,0.03655989,4651.6,4651.5,8.506]
[1755062325822,0.03655989,4651.6,4651.3,0.001]
[1755062326048,0.03655989,4651.6,4651.4,8.505]
[1755062326250,0.03655989,4651.6,4651.3,0.001]
[1755062326429,0.03655989,4651.6,4651.5,8.504]
[1755062329730,0.03655989,4651.6,4651.5,5.153]
[1755062329950,0.03655989,4651.6,4651.5,8.581]
[1755062331433,0.03655989,4651.6,4651.5,8.577]
[1755062332460,0.03655989,4651.6,4651.5,5.229]
[1755062332637,0.03655989,4651.6,4651.5,8.574]
[1755062333665,0.03655989,4651.6,4651.5,8.573]
[1755062334466,0.03655989,4651.6,4651.5,5.229]
[1755062334663,0.95945989,4651.6,4651.5,5.229]
[1755062334843,1.06665989,4651.6,4651.5,8.573]
[1755062335556,1.06665989,4651.6,4651.5,5.229]
[1755062335758,0.14375989,4651.6,4651.5,8.572]
[1755062335959,0.03655989,4651.6,4651.5,8.572]
[1755062336148,0.95945989,4651.6,4651.5,8.572]
[1755062336459,0.95945989,4651.6,4651.5,5.229]
[1755062336660,0.95945989,4651.6,4651.5,8.572]
[1755062337059,0.95945989,4651.6,4651.5,5.229]
[1755062337278,0.48185989,4651.6,4651.5,8.571]
[1755062337648,0.45185989,4651.6,4651.5,8.571]
[1755062338329,0.00655989,4651.6,4651.5,8.571]
[1755062339342,0.00655989,4651.9,4651.5,8.571]
[1755062339542,0.00655989,4651.6,4651.5,8.571]
[1755062339742,0.00655989,4651.9,4651.5,8.571]
[1755062339949,0.00655989,4651.6,4651.5,8.571]
[1755062340660,0.00655989,4651.9,4651.5,8.571]
[1755062340967,0.00655989,4652.6,4651.8,0.1072]
[1755062341168,0.00655989,4652.6,4651.6,0.01]
[1755062341169,0.00655989,4652.6,4651.9,3.34]
[1755062341336,0.00655989,4652.6,4651.6,0.01]
[1755062341337,0.00655989,4652.6,4652.2,0.1072]
[1755062341537,0.00655989,4652.6,4652.3,3.34]
[1755062341738,0.002,4652.8,4652.5,0.1072]
[1755062342070,0.002,4652.8,4652.6,3.34]
[1755062343079,0.002,4652.8,4652.7,0.01]
[1755062346059,0.002,4652.8,4652.7,3.347]
[1755062346674,0.002,4652.8,4652.7,3.51010939]
[1755062349358,0.002,4652.8,4652.7,3.50610939]
[1755062349554,0.002,4653.3,4652.8,0.55]
[1755062349754,0.002,4653.3,4652.8,0.56]
[1755062349954,0.002,4653.3,4652.9,0.01]
[1755062350382,0.002,4653.3,4653.2,0.1072]
[1755062350884,0.002,4653.3,4653.2,3.4412]
[1755062351974,0.002,4653.3,4653.2,0.1072]
[1755062352181,0.002,4653.3,4653.2,3.4412]
[1755062352975,0.002,4653.3,4653.2,0.1072]
[1755062353179,0.002,4653.3,4653.2,3.4412]
[1755062353587,0.002,4653.3,4653.2,0.1072]
[1755062353875,0.002,4653.3,4653.2,3.4392]
[1755062354058,0.4721,4653.3,4653.2,3.4392]
[1755062354454,0.9709,4653.3,4653.2,0.1072]
[1755062354656,0.9709,4653.3,4653.2,3.4392]
[1755062355380,0.9709,4653.3,4653.2,5.15]
[1755062355676,0.9709,4653.3,4653.2,8.482]
[1755062356182,1.07956599,4653.3,4653.2,8.482]
[1755062356549,1.07956599,4653.3,4653.2,5.15]
[1755062356750,1.07956599,4653.3,4653.2,8.482]
[1755062356949,1.07956599,4653.3,4653.2,8.481]
[1755062357147,0.00655989,4652.8,4652.7,0.1072]
[1755062357470,0.00655989,4652.8,4652.7,5.2572]
[1755062357648,0.00655989,4652.8,4652.7,8.5882]
[1755062358280,0.00655989,4653.1,4652.7,8.5882]
[1755062358480,0.002,4653.3,4652.7,8.5882]
[1755062358781,0.002,4653.3,4653.0,0.1072]
[1755062360183,0.9689,4653.2,4653.1,3.331]
[1755062360476,0.9689,4653.2,4653.1,3.329]
[1755062360684,0.9689,4653.2,4653.0,0.1072]
[1755062360979,0.002,4653.3,4653.1,3.329]
[1755062361568,0.002,4653.3,4653.2,3.329]
[1755062361770,0.002,4653.3,4653.0,0.1072]
[1755062362169,0.002,4653.3,4653.1,3.328]
[1755062362788,0.00855989,4653.3,4653.2,0.1072]
[1755062362985,0.00855989,4653.3,4653.2,3.4342]
[1755062364586,0.47865989,4653.3,4653.2,3.4342]
[1755062364895,0.97745989,4653.3,4653.2,3.4342]
[1755062366485,0.47865989,4653.3,4653.2,3.4312]
[1755062366871,0.00855989,4653.3,4653.2,3.4312]
[1755062367324,0.002,4653.3,4653.2,3.77432]
[1755062367466,0.002,4653.3,4653.2,0.1072]
[1755062367682,0.8269,4653.9,4653.2,3.4302]
[1755062368489,0.00655989,4653.3,4653.2,3.4302]
[1755062368660,0.00655989,4653.3,4653.2,3.322]
[1755062368862,0.00655989,4653.3,4653.2,3.4292]
[1755062369262,0.4988,4654.5,4653.2,3.4292]
[1755062369558,0.55,4655.4,4653.7,0.1072]
[1755062369559,0.4855,4654.2,4653.7,0.1072]
[1755062369806,0.94,4654.1,4653.8,3.321]
[1755062369988,0.55,4655.4,4653.8,3.321]
[1755062370289,0.94655989,4654.0,4653.9,5.15]
[1755062370592,0.00655989,4654.0,4653.9,5.69626834]
[1755062370786,0.002,4654.3,4653.9,5.80346834]
[1755062370988,0.00655989,4654.1,4653.9,5.2572]
[1755062371191,0.00655989,4654.1,4653.9,5.15]
[1755062371393,0.00655989,4654.1,4654.0,0.1072]
[1755062372064,0.00655989,4654.1,4654.0,3.4272]
[1755062372263,0.00655989,4654.1,4654.0,0.1072]
[1755062372465,0.00655989,4654.1,4654.0,3.4272]
[1755062372685,0.00655989,4654.1,4654.0,0.1072]
[1755062372890,0.00655989,4654.1,4654.0,3.4272]
[1755062373895,0.00655989,4654.1,4654.0,0.1072]
[1755062374402,0.00655989,4654.1,4654.0,3.4262]
[1755062375776,0.00655989,4654.1,4654.0,0.1072]
[1755062375973,0.00655989,4654.1,4654.0,3.4252]
[1755062376995,0.002,4654.3,4654.0,3.4252]
[1755062378709,0.002,4654.3,4654.0,0.1072]
[1755062378914,0.94,4654.2,4654.0,0.1072]
[1755062379109,0.002,4654.3,4654.1,3.315]
[1755062379295,0.002,4654.3,4654.0,0.1072]
[1755062379507,0.002,4654.3,4654.1,3.316]
[1755062379674,0.94,4654.2,4654.1,3.316]
[1755062380803,0.94,4654.2,4654.1,3.315]
[1755062381723,0.002,4654.3,4654.1,3.315]
[1755062384312,0.002,4654.3,4654.0,0.1072]
[1755062384485,0.002,4654.3,4654.1,8.462]
[1755062387018,0.002,4654.3,4654.2,8.46]
[1755062387795,0.002,4654.3,4654.2,5.149]
[1755062387995,0.002,4654.3,4654.2,8.459]
[1755062389790,0.942,4654.3,4654.2,8.459]
[1755062391023,0.002,4654.3,4654.2,8.459]
[1755062392725,0.002,4654.3,4654.2,5.149]
[1755062392934,0.002,4654.3,4654.2,8.459]
[1755062395102,0.002,4654.3,4654.2,5.149]
[1755062395320,0.002,4654.3,4654.2,8.459]
[1755062396611,0.942,4654.3,4654.2,8.459]
[1755062396914,0.942,4654.3,4654.2,5.149]
[1755062397125,0.942,4654.3,4654.2,8.459]
[1755062397429,0.942,4654.3,4654.2,5.149]
[1755062397635,0.942,4654.3,4654.2,8.459]
[1755062397833,0.942,4654.3,4654.2,5.149]
[1755062398325,0.942,4654.3,4654.2,8.459]
[1755062400330,0.942,4654.3,4654.0,0.1072]
[1755062400331,0.00655989,4654.1,4654.0,0.1072]
[1755062400538,0.00655989,4653.3,4653.2,0.1072]
[1755062400835,0.00655989,4653.0,4652.8,0.1072]
[1755062401331,0.00655989,4653.0,4652.9,0.481]
[1755062401900,0.4388,4653.4,4652.9,3.791]
[1755062401901,0.44535989,4653.4,4652.9,3.791]
[1755062402130,0.00655989,4653.0,4652.9,3.791]
[1755062402434,0.00655989,4653.6,4652.9,3.791]
[1755062402611,0.00655989,4653.6,4652.9,3.8982]
[1755062402803,0.00655989,4653.6,4653.5,0.1072]
[1755062403016,0.00655989,4653.6,4653.5,3.4172]
[1755062403213,0.93425989,4653.6,4653.5,3.31]
[1755062404403,0.00655989,4653.3,4652.9,0.481]
[1755062404602,0.00655989,4653.0,4652.9,0.481]
[1755062404803,0.93425989,4653.0,4652.9,0.481]
[1755062405111,0.93425989,4653.0,4652.9,3.791]
[1755062405309,0.93425989,4653.0,4652.9,8.941]
[1755062405816,0.93425989,4653.0,4652.9,5.631]
[1755062406034,0.93425989,4653.0,4652.9,8.941]
[1755062408135,0.93425989,4653.0,4652.9,5.631]
[1755062408339,0.93425989,4653.0,4652.9,8.941]
[1755062408637,0.00655989,4653.0,4652.9,8.941]
[1755062409029,0.44535989,4653.0,4652.9,8.941]
[1755062409233,0.93425989,4653.0,4652.9,8.941]
[1755062409542,0.00655989,4653.4,4652.9,8.941]
[1755062409843,0.00655989,4653.4,4652.9,9.0482]
[1755062410008,0.00655989,4653.4,4652.9,8.941]
[1755062410212,0.00655989,4653.4,4653.3,0.1072]
[1755062410440,0.00655989,4653.4,4653.3,3.4172]
[1755062411710,0.00655989,4653.7,4653.3,3.4172]
[1755062411906,0.00655989,4653.4,4653.3,3.4172]
[1755062412112,0.00655989,4653.4,4653.3,3.31]
[1755062412371,0.00655989,4653.4,4653.3,3.4172]
[1755062413607,0.00655989,4653.4,4653.3,0.1072]
[1755062413814,0.44535989,4653.4,4653.3,3.4172]
[1755062414331,0.44535989,4653.4,4653.3,0.1072]
[1755062414536,0.00655989,4653.4,4653.3,3.4172]
[1755062415449,0.44535989,4653.4,4653.3,3.4172]
[1755062416418,0.00655989,4653.4,4653.3,3.4172]
[1755062417533,0.00655989,4653.4,4653.3,0.1072]
[1755062417745,0.00655989,4653.4,4653.3,3.4172]
[1755062417932,0.44535989,4653.4,4653.3,3.4172]
[1755062418522,0.93425989,4653.4,4653.3,3.4172]
[1755062419361,0.93425989,4653.4,4653.3,0.1072]
[1755062419547,1.04145989,4653.4,4653.3,3.31]
[1755062420045,1.04145989,4653.4,4652.9,5.631]
[1755062420251,0.00655989,4653.1,4653.0,3.31]
[1755062420451,0.93425989,4653.1,4653.0,3.31]
[1755062420752,0.00655989,4653.1,4653.0,3.31]
[1755062421349,0.44535989,4653.1,4653.0,3.31]
[1755062421731,0.00655989,4653.1,4653.0,3.31]
[1755062422336,0.44535989,4653.1,4653.0,3.31]
[1755062422541,0.93425989,4653.1,4653.0,3.31]
[1755062424467,0.44535989,4653.1,4653.0,3.31]
[1755062425530,0.93425989,4653.1,4653.0,3.31]
[1755062425935,0.93425989,4653.1,4652.9,5.631]
[1755062426258,0.00655989,4653.1,4653.0,3.31]
[1755062426839,0.93425989,4653.1,4652.9,5.631]
[1755062427045,0.00655989,4653.1,4653.0,3.31]
[1755062427562,0.93425989,4653.1,4653.0,3.31]
[1755062428529,1.04145989,4653.1,4653.0,3.31]
[1755062428729,1.04145989,4653.1,4653.0,3.311]
[1755062429737,0.92365989,4653.1,4653.0,3.311]
[1755062430853,0.92365989,4653.1,4653.0,8.461]
[1755062430854,1.47365989,4653.1,4653.0,8.461]
[1755062431159,3.22589431,4653.1,4653.0,5.151]
[1755062432235,3.22589431,4653.1,4653.0,8.461]
[1755062432559,1.47365989,4653.1,4653.0,8.461]
[1755062433970,0.55,4653.0,4652.9,0.481]
[1755062434133,1.4671,4653.0,4652.8,0.001]
[1755062434331,0.4313,4652.9,4652.8,0.001]
[1755062434571,0.9171,4652.9,4652.8,0.001]
[1755062435074,1.62518599,4652.9,4652.8,0.001]
[1755062435368,1.62518599,4652.9,4652.8,5.876]
[1755062435586,1.62518599,4652.9,4652.8,5.151]
[1755062435880,0.55,4652.8,4651.6,0.001]
[1755062436080,0.11375989,4651.9,4651.6,0.001]
[1755062436238,0.11375989,4651.9,4651.8,5.153]
[1755062436440,1.03085989,4651.9,4651.8,5.153]
[1755062436869,1.03085989,4651.9,4651.8,8.463]
[1755062437343,1.58085989,4651.9,4651.8,5.153]
[1755062437540,1.73894588,4651.9,4651.8,8.463]
[1755062447858,1.25314588,4651.9,4651.8,8.463]
[1755062448064,0.66375989,4651.9,4651.8,8.463]
[1755062448792,0.11375989,4651.9,4651.8,8.463]
[1755062451364,0.1072,4651.9,4651.8,8.463]
[1755062451591,0.11375989,4651.9,4651.8,8.463]
[1755062451803,0.1072,4651.9,4651.8,8.463]
[1755062452604,0.11375989,4651.9,4651.8,8.463]
[1755062453104,0.00655989,4651.9,4651.8,8.463]
[1755062453312,0.00655989,4651.9,4651.8,8.9366]
[1755062453869,0.55,4652.8,4651.8,8.9366]
[1755062454222,0.55,4652.8,4651.8,8.7846]
[1755062454223,0.14691,4652.8,4651.8,8.7846]
[1755062454370,0.00655989,4651.9,4651.8,8.7846]
[1755062454565,0.00655989,4651.9,4651.8,8.9366]
[1755062454766,0.00655989,4651.9,4651.8,9.0438]
[1755062455390,0.1072,4652.8,4651.8,9.0438]
[1755062455578,0.1072,4652.8,4651.8,8.5702]
[1755062455781,0.1072,4652.8,4652.2,0.1072]
[1755062456021,0.00655989,4652.4,4652.3,3.31]
[1755062456714,0.43785989,4652.4,4652.3,3.31]
[1755062456897,0.54505989,4652.4,4652.3,3.31]
[1755062457482,0.11375989,4652.4,4652.3,3.31]
[1755062458811,0.1072,4652.8,4652.3,3.31]
[1755062459000,0.00655989,4652.4,4652.3,3.7836]
[1755062459536,0.00655989,4652.4,4652.3,3.6316]
[1755062459894,0.00655989,4652.4,4652.3,3.7836]
[1755062460290,0.00655989,4652.4,4652.3,3.6316]
[1755062461128,0.00655989,4652.4,4652.3,3.31]
[1755062462936,0.00655989,4652.4,4652.3,3.42]
[1755062463350,0.00655989,4652.4,4652.3,3.8936]
[1755062468923,0.00655989,4652.8,4652.3,3.7416]
[1755062469124,0.00655989,4652.8,4652.4,3.308]
[1755062469325,0.00655989,4652.8,4652.7,0.1072]
[1755062469556,0.00655989,4652.8,4652.7,3.4152]
[1755062470140,0.00655989,4652.8,4652.7,0.1072]
[1755062470465,0.97625989,4652.8,4652.7,3.4152]
[1755062470971,0.97625989,4652.8,4652.7,0.1072]
[1755062471271,0.97625989,4652.8,4652.7,3.4152]
[1755062472230,0.97625989,4652.8,4652.7,3.308]
[1755062472426,1.08345989,4652.8,4652.7,3.308]
[1755062473084,1.19220588,4652.8,4652.7,3.308]
[1755062475287,1.74220588,4652.8,4652.7,3.308]
[1755062475467,1.74220588,4652.8,4652.3,0.11]
[1755062475468,0.55,4652.7,4652.3,0.11]
[1755062475664,0.66375989,4652.4,4652.3,0.11]
[1755062475864,1.85180588,4652.4,4652.3,3.418]
[1755062477891,1.85180588,4652.4,4652.3,0.11]
[1755062478086,1.85180588,4652.4,4652.3,3.418]
[1755062478390,1.85180588,4652.4,4652.3,3.417]
[1755062479300,1.85180588,4652.4,4651.6,0.001]
[1755062479462,0.66375989,4651.9,4651.6,0.001]
[1755062479990,1.63345989,4651.9,4651.6,0.001]
[1755062480403,1.63345989,4651.9,4651.8,8.46]
[1755062480990,0.55,4651.8,4651.6,0.001]
[1755062481212,1.5197,4651.8,4651.7,8.459]
[1755062481416,3.27699442,4651.8,4651.7,5.152]
[1755062481583,19.21647872,4651.8,4651.7,5.152]
[1755062481982,0.00655989,4651.4,4651.3,0.001]
[1755062482217,0.66375989,4651.4,4651.3,0.001]
[1755062482510,1.63345989,4651.4,4651.3,0.809]
[1755062482713,1.79680588,4651.4,4651.3,0.809]
[1755062483283,1.79680588,4651.4,4651.3,0.001]
[1755062483494,1.79680588,4651.4,4651.3,1.658]
[1755062484707,1.79680588,4651.4,4651.3,0.001]
[1755062484913,1.79680588,4651.4,4651.3,2.643]
[1755062485317,1.79680588,4651.4,4651.3,7.796]
[1755062486111,1.79680588,4651.4,4651.3,8.462]
[1755062488330,1.79680588,4651.4,4651.3,5.154]
[1755062488532,1.79680588,4651.4,4651.3,8.462]
[1755062489449,1.79680588,4651.4,4651.3,5.154]
[1755062489742,1.79680588,4651.4,4651.3,8.462]
[1755062491312,1.79680588,4651.4,4651.3,5.154]
[1755062491548,1.79680588,4651.4,4651.3,8.462]
[1755062492344,1.79680588,4651.4,4651.3,8.461]
[1755062493003,1.79680588,4651.4,4651.1,0.001]
[1755062493204,0.72968059,4651.3,4651.2,8.462]
[1755062493427,1.4791,4651.3,4651.2,8.462]
[1755062494019,1.4791,4651.3,4651.2,5.154]
[1755062494218,1.4791,4651.3,4651.2,8.462]
[1755062494438,17.4185843,4651.3,4651.2,8.462]
[1755062495168,17.4185843,4651.3,4651.2,5.154]
[1755062495373,19.17181872,4651.3,4651.2,8.462]
[1755062496947,19.17181872,4651.3,4651.2,8.461]
[1755062497242,19.17181872,4651.3,4651.2,5.154]
[1755062498736,19.17181872,4651.3,4651.2,8.462]
[1755062499683,18.24271872,4651.3,4651.2,8.462]
[1755062499865,18.71431872,4651.3,4651.2,8.462]
[1755062500049,19.81642372,4651.3,4651.2,8.462]
[1755062500371,19.81642372,4651.3,4651.2,5.154]
[1755062500565,19.81642372,4651.3,4651.2,8.461]
[1755062501388,19.81642372,4651.3,4651.2,5.154]
[1755062502146,19.81642372,4651.3,4651.1,0.001]
[1755062502441,3.47211836,4651.2,4651.1,0.001]
[1755062502683,3.47211836,4651.2,4651.1,1.089]
[1755062503794,0.55,4651.1,4650.8,0.001]
[1755062503995,0.00655989,4650.5,4650.4,0.001]
[1755062504162,16.60324419,4650.5,4650.4,0.001]
[1755062504364,18.26356861,4650.5,4650.4,0.001]
[1755062505192,18.26356861,4650.5,4650.4,1.087]
[1755062505390,18.26356861,4650.5,4650.4,6.241]
[1755062505593,16.60324419,4650.5,4650.4,6.241]
[1755062508598,0.66375989,4650.5,4650.4,6.241]
[1755062511104,0.66375989,4650.5,4650.4,5.155]
[1755062511405,0.66375989,4650.5,4650.4,8.462]
[1755062514402,0.66375989,4650.5,4650.4,8.461]
[1755062514780,0.66375989,4650.5,4650.4,5.155]
[1755062514981,0.66375989,4650.5,4650.4,8.461]
[1755062515993,0.66375989,4650.5,4650.4,5.155]
[1755062517193,1.30839389,4650.5,4650.4,8.461]
[1755062517594,0.66375989,4650.5,4650.4,8.461]
[1755062518212,1.13535989,4650.5,4650.4,8.461]
[1755062518418,2.90750771,4650.5,4650.4,8.461]
[1755062519823,0.55,4650.4,4650.3,0.001]
[1755062520025,1.4525,4650.4,4650.3,8.379]
[1755062520905,1.4525,4650.4,4650.3,5.156]
[1755062521226,3.4447526,4650.4,4650.3,5.156]
[1755062521603,3.4447526,4650.4,4650.3,8.462]
[1755062522909,2.9872526,4650.4,4650.3,8.462]
[1755062523413,2.9872526,4650.4,4650.3,8.461]
[1755062524006,2.9872526,4650.4,4650.3,5.156]
[1755062524208,2.9872526,4650.4,4650.3,8.461]
[1755062525611,2.5422526,4650.4,4650.3,8.461]
[1755062526423,2.9872526,4650.4,4650.3,8.461]
[1755062528941,2.9872526,4650.4,4650.3,5.156]
[1755062529309,2.9872526,4650.4,4650.3,8.461]
[1755062529509,2.9872526,4650.4,4650.3,5.156]
[1755062529710,2.9872526,4650.4,4650.3,8.461]
[1755062530209,2.9872526,4650.4,4650.3,5.156]
[1755062530432,0.55,4650.4,4650.3,8.461]
[1755062531646,0.55,4650.4,4650.3,5.156]
[1755062531946,0.55,4650.4,4650.3,8.461]
[1755062532944,0.55,4650.4,4650.3,5.156]
[1755062533148,0.995,4650.4,4650.3,8.461]
[1755062533338,0.6572,4650.4,4650.3,8.461]
[1755062534842,0.66375989,4650.4,4650.3,8.461]
[1755062535560,0.66375989,4650.4,4650.3,5.156]
[1755062535760,0.66375989,4650.4,4650.3,8.46]
[1755062535964,0.66375989,4650.4,4650.3,5.156]
[1755062536348,0.66375989,4650.4,4650.3,8.46]
[1755062537675,0.66375989,4650.4,4650.3,5.156]
[1755062538077,1.10875989,4650.4,4650.3,8.46]
[1755062538379,1.10875989,4650.4,4650.3,5.156]
[1755062538541,1.56625989,4650.4,4650.3,8.46]
[1755062538746,3.27308431,4650.4,4650.3,8.46]
[1755062539677,3.27308431,4650.4,4650.3,5.156]
[1755062539876,3.27308431,4650.4,4650.3,8.46]
[1755062540069,1.56825989,4650.4,4650.3,8.46]
[1755062540293,0.00655989,4649.0,4648.8,2.68]
[1755062540493,0.55655989,4649.0,4648.9,5.155]
[1755062540678,0.55655989,4649.0,4648.9,8.458]
[1755062541026,17.39854419,4649.0,4648.9,5.155]
[1755062541205,19.25631861,4649.0,4647.1,0.001]
[1755062541505,0.00655989,4647.4,4647.2,5.155]
[1755062542070,0.1072,4647.3,4647.2,5.155]
[1755062542269,0.55655989,4647.4,4647.2,5.155]
[1755062542516,0.55655989,4647.4,4647.3,3.303]
[1755062543569,0.55655989,4647.4,4647.2,5.155]
[1755062543789,0.55655989,4647.4,4647.3,3.303]
[1755062544188,0.55655989,4647.4,4647.2,5.155]
[1755062544505,0.55655989,4647.4,4647.3,3.303]
[1755062545278,0.55655989,4647.4,4647.3,3.304]
[1755062545706,0.00655989,4647.4,4647.3,3.304]
[1755062547089,0.00655989,4647.4,4647.2,5.155]
[1755062547288,0.00655989,4647.4,4647.3,3.304]
[1755062547603,0.55655989,4647.4,4647.2,5.155]
[1755062547829,0.9025,4647.3,4647.2,5.155]
[1755062547994,1.4525,4647.3,4647.2,8.459]
[1755062548394,0.55,4647.3,4647.2,8.459]
[1755062548730,0.6572,4647.3,4647.2,8.459]
[1755062548921,0.6572,4647.3,4647.2,5.155]
[1755062549116,0.6572,4647.3,4647.2,8.459]
[1755062551130,0.1072,4647.3,4647.2,8.459]
[1755062551427,1.5786,4647.3,4647.2,5.155]
[1755062551628,3.38606442,4647.3,4647.2,8.459]
[1755062551833,1.5786,4647.3,4647.2,8.459]
[1755062552601,0.6572,4647.3,4647.2,8.459]
[1755062552801,1.1157,4647.3,4647.2,8.459]
[1755062553042,1.5786,4647.3,4647.2,8.459]
[1755062553337,1.5786,4647.3,4647.2,5.157]
[1755062553527,3.39557442,4647.3,4647.2,5.157]
[1755062553706,2.93267442,4647.3,4647.2,5.157]
[1755062554330,2.93267442,4647.3,4647.2,8.461]
[1755062554534,1.1157,4647.3,4647.2,8.461]
[1755062555112,0.6572,4647.3,4647.2,8.461]
[1755062555344,1.1157,4647.3,4647.2,8.461]
[1755062555751,1.1157,4647.3,4647.2,5.157]
[1755062556063,1.1157,4647.3,4647.2,8.461]
[1755062557069,1.5786,4647.3,4647.2,5.157]
[1755062557366,1.5786,4647.3,4647.2,8.461]
[1755062557367,3.39557442,4647.3,4647.2,8.461]
[1755062559439,3.39557442,4647.3,4647.2,5.157]
[1755062559775,3.39557442,4647.3,4647.2,8.461]
[1755062560468,3.39557442,4647.3,4646.6,0.001]
[1755062560469,0.00655989,4646.7,4646.6,0.001]
[1755062560668,0.11455989,4646.7,4646.6,5.159]
[1755062561337,0.46505989,4646.7,4646.6,5.159]
[1755062561665,0.46505989,4646.7,4646.6,8.463]
[1755062561875,0.36505989,4646.7,4646.6,8.463]
[1755062562253,0.91505989,4646.7,4646.6,5.159]
[1755062562436,0.69650599,4646.7,4646.6,8.463]
[1755062562642,0.55,4646.7,4646.6,8.463]
[1755062563268,18.3923843,4646.7,4645.6,0.001]
[1755062563606,16.4894843,4645.7,4645.6,0.001]
[1755062563787,18.13843273,4645.7,4645.6,3.328]
[1755062563961,18.59693273,4645.7,4645.6,3.328]
[1755062564163,16.9479843,4645.7,4645.6,3.328]
[1755062564360,17.4108843,4645.7,4645.6,3.328]
[1755062566303,17.4108843,4645.7,4644.6,5.159]
[1755062566304,0.55,4645.6,4644.6,5.159]
[1755062566475,0.80490635,4646.7,4644.8,2.674]
[1755062566476,0.645359,4646.7,4644.8,2.674]
[1755062566674,0.4585,4647.1,4644.9,0.0954]
[1755062566886,0.4585,4647.4,4644.9,0.0954]
[1755062567061,0.4585,4647.4,4645.0,0.001]
[1755062567262,0.4629,4648.1,4645.1,3.4604]
[1755062567593,0.4585,4648.5,4645.2,0.65564128]
[1755062567766,0.4585,4648.5,4645.3,0.0954]
[1755062568071,15.9394843,4647.2,4645.4,3.38]
[1755062568278,0.4585,4647.8,4645.5,0.0954]
[1755062568700,0.4585,4647.8,4645.6,0.001]